bitfinex/quotes_SOLUSD_20241029
["timestamp","ask_amount","ask_price","bid_price","bid_amount"]
[1730162934875,36.57657475,177.79,177.73,30.64437475]
[1730162935268,36.57657475,177.79,177.74,10.95187475]
[1730162935876,36.57657475,177.79,177.74,16.57797475]
[1730162936188,25.6247,177.79,177.74,16.57797475]
[1730162937174,15.14,177.83,177.78,10.95187475]
[1730162937480,20.7633,177.83,177.79,10.95187475]
[1730162937660,10.95187475,177.82,177.76,10.95187475]
[1730162937861,10.95187475,177.82,177.77,10.95187475]
[1730162938064,20.7633,177.83,177.74,19.6915]
[1730162938283,10.95187475,177.81,177.76,10.95187475]
[1730162938785,10.95187475,177.81,177.76,16.57717475]
[1730162939164,16.57607475,177.8,177.74,30.64337475]
[1730162939362,10.95187475,177.79,177.74,19.6915]
[1730162939566,10.95187475,177.81,177.76,10.95187475]
[1730162939798,30.95187475,177.81,177.76,10.95187475]
[1730162940084,20.0,177.81,177.77,10.95187475]
[1730162940278,31.71517475,177.83,177.78,10.95187475]
[1730162940578,31.71517475,177.83,177.77,10.95187475]
[1730162940966,31.71517475,177.83,177.77,16.57697475]
[1730162941685,10.95187475,177.81,177.76,16.57737475]
[1730162941989,10.95187475,177.81,177.75,5.6257]
[1730162942160,10.95187475,177.79,177.74,14.0654]
[1730162942790,10.95187475,177.79,177.73,10.95187475]
[1730162942957,10.95187475,177.79,177.74,10.95187475]
[1730162942958,16.57647475,177.79,177.74,10.95187475]
[1730162943770,5.6246,177.79,177.75,10.95187475]
[1730162945381,5.6246,177.79,177.74,10.95187475]
[1730162946279,16.57647475,177.79,177.74,10.95187475]
[1730162947084,10.95187475,177.77,177.72,14.067]
[1730162947992,10.95187475,177.77,177.72,19.6938]
[1730162949472,16.57707475,177.78,177.72,30.64567475]
[1730162950067,16.57707475,177.78,177.73,10.95187475]
[1730162950976,16.57707475,177.78,177.72,10.95187475]
[1730162951289,16.57707475,177.78,177.73,10.95187475]
[1730162951988,10.95187475,177.75,177.69,14.0694]
[1730162952187,10.95187475,177.74,177.69,25.02127475]
[1730162952391,10.95187475,177.74,177.69,30.64897475]
[1730162953082,10.95187475,177.75,177.7,10.95187475]
[1730162953281,16.57777475,177.75,177.7,10.95187475]
[1730162953870,16.57777475,177.75,177.69,30.64897475]
[1730162953871,10.95187475,177.74,177.69,30.64897475]
[1730162954174,10.95187475,177.73,177.68,16.57987475]
[1730162954893,10.95187475,177.74,177.68,16.57987475]
[1730162955092,5.6259,177.75,177.7,10.95187475]
[1730162956871,10.95187475,177.75,177.7,10.95187475]
[1730162957397,10.95187475,177.75,177.69,5.6276]
[1730162957398,6.1195,177.73,177.69,16.57947475]
[1730162957690,10.95187475,177.7,177.62,10.95187475]
[1730162957873,10.95187475,177.68,177.62,16.58177475]
[1730162958073,10.95187475,177.69,177.64,10.95187475]
[1730162958478,10.95187475,177.68,177.62,19.7048]
[1730162958691,10.95187475,177.69,177.63,10.95187475]
[1730162958891,26.51917475,177.71,177.65,10.95187475]
[1730162959100,20.0,177.7,177.65,10.95187475]
[1730162959468,20.0,177.7,177.64,19.7025]
[1730162959669,15.5673,177.71,177.66,10.95187475]
[1730162960191,21.1944,177.71,177.66,16.58047475]
[1730162960490,6.1195,177.73,177.69,10.95187475]
[1730162960491,11.7463,177.73,177.69,10.95187475]
[1730162960874,15.1962,177.75,177.7,10.95187475]
[1730162961072,26.14807475,177.75,177.7,10.95187475]
[1730162961801,26.14807475,177.75,177.69,10.95187475]
[1730162961979,15.1962,177.75,177.72,10.95187475]
[1730162962691,6.0507,177.77,177.73,10.95187475]
[1730162963796,11.676,177.77,177.73,10.95187475]
[1730162964497,11.676,177.77,177.73,17.11361836]
[1730162964883,11.676,177.77,177.74,17.11361836]
[1730162965118,5.6253,177.77,177.74,17.11361836]
[1730162965270,20.821,177.79,177.76,17.11361836]
[1730162965601,23.67131836,177.81,177.71,19.6949]
[1730162965602,5.6244,177.8,177.77,17.11361836]
[1730162965778,5.6244,177.8,177.76,17.11361836]
[1730162965979,17.11361836,177.79,177.74,17.11361836]
[1730162966191,17.11361836,177.78,177.72,17.11361836]
[1730162966413,22.73801836,177.8,177.75,17.11361836]
[1730162966980,20.0,177.79,177.73,5.6264]
[1730162967178,20.0,177.79,177.74,17.11361836]
[1730162967701,5.6249,177.78,177.74,17.11361836]
[1730162968299,5.6249,177.78,177.75,17.11361836]
[1730162970001,5.6249,177.78,177.74,17.11361836]
[1730162970385,22.73851836,177.78,177.73,17.11361836]
[1730162970612,5.6249,177.78,177.74,17.11361836]
[1730162971111,22.73851836,177.78,177.73,17.11361836]
[1730162971801,5.6249,177.78,177.74,17.11361836]
[1730162971974,5.6249,177.78,177.73,17.11361836]
[1730162972682,5.6249,177.78,177.74,17.11361836]
[1730162972885,22.73851836,177.78,177.73,17.11361836]
[1730162973086,5.6249,177.78,177.74,17.11361836]
[1730162973291,22.73851836,177.78,177.73,17.11361836]
[1730162973492,5.6249,177.78,177.74,17.11361836]
[1730162973887,37.11361836,177.77,177.72,17.11361836]
[1730162975000,17.11361836,177.75,177.7,17.11361836]
[1730162976091,22.73961836,177.75,177.7,17.11361836]
[1730162976503,5.626,177.75,177.71,17.11361836]
[1730162977582,58.72442371,177.77,177.71,17.11361836]
[1730162977782,20.0,177.75,177.71,17.11361836]
[1730162978789,25.6261,177.75,177.71,17.11361836]
[1730162979906,42.73971836,177.75,177.7,17.11361836]
[1730162980133,42.73971836,177.75,177.68,14.0701]
[1730162980134,37.11361836,177.73,177.68,17.11361836]
[1730162980414,17.11361836,177.71,177.66,17.11361836]
[1730162980599,20.0,177.73,177.67,17.11361836]
[1730162980600,17.11361836,177.72,177.67,17.11361836]
[1730162980797,37.11361836,177.73,177.67,17.11361836]
[1730162981201,5.6268,177.72,177.67,17.11361836]
[1730162982902,22.74041836,177.72,177.67,17.11361836]
[1730162983412,17.11361836,177.71,177.66,17.11361836]
[1730162983785,5.6268,177.72,177.64,17.11361836]
[1730162983786,17.11361836,177.69,177.64,17.11361836]
[1730162983990,20.0,177.68,177.64,17.11361836]
[1730162984494,20.0,177.68,177.64,10.96383409]
[1730162985296,20.0,177.68,177.63,16.59333409]
[1730162985811,5.628,177.69,177.64,10.96383409]
[1730162986014,5.628,177.69,177.65,10.96383409]
[1730162986227,5.628,177.69,177.66,10.96383409]
[1730162986441,16.59113409,177.71,177.66,10.96383409]
[1730162986592,20.0,177.7,177.66,10.96383409]
[1730162987120,5.6271,177.71,177.68,10.96383409]
[1730162987301,21.9304,177.72,177.68,10.96383409]
[1730162987816,32.89423409,177.72,177.67,10.96383409]
[1730162989595,21.9304,177.72,177.68,10.96383409]
[1730162989817,5.6268,177.72,177.68,10.96383409]
[1730162990115,25.6266,177.73,177.69,10.96383409]
[1730162992222,12.78022567,177.75,177.72,10.96383409]
[1730162992420,12.78022567,177.75,177.71,10.96383409]
[1730162992601,29.37015976,177.75,177.7,10.96383409]
[1730162992799,10.96383409,177.74,177.69,10.96383409]
[1730162993004,10.96383409,177.73,177.68,10.96383409]
[1730162993421,10.96383409,177.74,177.69,10.96383409]
[1730162994318,5.6265,177.73,177.69,10.96383409]
[1730162994892,5.6265,177.73,177.7,10.96383409]
[1730162995221,25.6262,177.74,177.71,10.96383409]
[1730162996403,12.78022567,177.75,177.72,10.96383409]
[1730162996605,12.78022567,177.75,177.7,5.6274]
[1730162996606,12.78022567,177.75,177.73,10.96383409]
[1730162998809,10.96383409,177.74,177.67,19.6992]
[1730162999123,29.36995976,177.75,177.7,10.96383409]
[1730162999322,18.40612567,177.75,177.72,10.96383409]
[1730162999498,12.78022567,177.75,177.72,10.96383409]
[1730163000323,12.78022567,177.75,177.71,16.59083409]
[1730163000519,18.40602567,177.75,177.7,30.65973409]
[1730163000822,10.96383409,177.73,177.67,19.6993]
[1730163001030,10.96383409,177.73,177.68,10.96383409]
[1730163002206,16.59043409,177.73,177.68,10.96383409]
[1730163002310,16.59043409,177.73,177.67,10.96383409]
[1730163004028,16.59043409,177.73,177.67,16.59203409]
[1730163004208,5.6266,177.73,177.69,10.96383409]
[1730163004926,5.6266,177.73,177.7,10.96383409]
[1730163005107,23.74405976,177.75,177.7,10.96383409]
[1730163005108,25.6261,177.74,177.7,10.96383409]
[1730163005517,5.6258,177.76,177.73,10.96383409]
[1730163006404,5.6258,177.76,177.72,10.96383409]
[1730163006830,10.96383409,177.75,177.7,16.59103409]
[1730163007031,10.96383409,177.74,177.69,10.96383409]
[1730163007324,20.0,177.75,177.7,10.96383409]
[1730163007522,30.96383409,177.75,177.7,10.96383409]
[1730163008052,25.626,177.75,177.71,10.96383409]
[1730163009132,36.58983409,177.75,177.7,10.96383409]
[1730163010123,25.626,177.75,177.71,10.96383409]
[1730163010803,25.626,177.75,177.72,10.96383409]
[1730163012609,25.626,177.75,177.7,10.96383409]
[1730163012815,16.6022,177.78,177.73,10.96383409]
[1730163013022,43.776884,177.77,177.74,10.96383409]
[1730163013213,20.0,177.77,177.74,10.96383409]
[1730163013770,5.6252,177.78,177.75,10.96383409]
[1730163014322,5.87688083,177.82,177.77,10.96383409]
[1730163014642,5.6239,177.81,177.77,10.96383409]
[1730163015109,5.6239,177.81,177.76,10.96383409]
[1730163015312,16.58773409,177.81,177.76,10.96383409]
[1730163015909,23.776884,177.8,177.76,10.96383409]
[1730163016114,36.5152,177.83,177.79,10.96383409]
[1730163016115,22.4562,177.83,177.79,10.96383409]
[1730163016304,22.4562,177.83,177.74,19.6914]
[1730163016305,10.96383409,177.83,177.78,10.96383409]
[1730163016969,5.87760756,177.87,177.79,10.96383409]
[1730163016970,10.96383409,177.84,177.79,10.96383409]
[1730163017540,10.96383409,177.83,177.78,10.96383409]
[1730163017833,5.6233,177.83,177.79,10.96383409]
[1730163018621,16.58713409,177.83,177.78,10.96383409]
[1730163019831,16.58713409,177.83,177.79,10.96383409]
[1730163019832,5.6233,177.83,177.79,10.96383409]
[1730163020028,29.399884,177.84,177.81,10.96383409]
[1730163020222,25.6223,177.86,177.82,10.96383409]
[1730163020422,25.6223,177.86,177.83,10.96383409]
[1730163021444,25.6223,177.87,177.83,10.96383409]
[1730163022440,36.58613409,177.87,177.82,10.96383409]
[1730163022950,10.96383409,177.85,177.8,10.96383409]
[1730163024044,10.96383409,177.84,177.79,25.02453409]
[1730163024416,5.6227,177.85,177.78,10.96383409]
[1730163024417,34.74071809,177.83,177.78,10.96383409]
[1730163025125,23.776884,177.83,177.79,10.96383409]
[1730163025319,5.6227,177.85,177.82,10.96383409]
[1730163025517,5.6227,177.85,177.83,10.96383409]
[1730163025930,5.6223,177.86,177.83,10.96383409]
[1730163026137,5.6223,177.86,177.82,10.96383409]
[1730163026345,5.6223,177.86,177.83,10.96383409]
[1730163027740,5.6223,177.86,177.81,10.96383409]
[1730163028250,5.6223,177.86,177.82,10.96383409]
[1730163029534,20.0,177.87,177.84,10.96383409]
[1730163029736,25.622,177.87,177.83,10.96383409]
[1730163029925,25.622,177.87,177.84,10.96383409]
[1730163030924,25.622,177.87,177.83,10.96383409]
[1730163031645,25.622,177.87,177.84,10.96383409]
[1730163032071,5.6216,177.89,177.86,10.96383409]
[1730163032255,27.5431,177.93,177.88,10.96383409]
[1730163032552,38.50693409,177.93,177.88,10.96383409]
[1730163033444,23.776884,177.92,177.88,10.96383409]
[1730163033651,20.0,177.91,177.88,10.96383409]
[1730163033837,27.5431,177.93,177.89,10.96383409]
[1730163034044,5.6202,177.93,177.89,10.96383409]
[1730163034360,5.87488761,177.96,177.91,10.96383409]
[1730163034361,22.4579217,177.96,177.91,10.96383409]
[1730163034522,16.58303409,177.96,177.91,10.96383409]
[1730163035229,5.6192,177.96,177.92,10.96383409]
[1730163036345,5.6192,177.96,177.93,10.96383409]
[1730163036649,24.0186559,177.97,177.95,10.96383409]
[1730163037038,18.3996559,177.97,177.95,10.96383409]
[1730163037236,18.3996559,177.97,177.94,10.96383409]
[1730163037442,24.0185559,177.97,177.94,10.96383409]
[1730163038551,34.98238999,177.97,177.92,10.96383409]
[1730163038747,24.0185559,177.97,177.92,10.96383409]
[1730163039148,24.0185559,177.97,177.93,10.96383409]
[1730163039535,34.98238999,177.97,177.92,10.96383409]
[1730163040057,20.0,177.96,177.9,14.0528]
[1730163040234,30.96383409,177.96,177.91,10.96383409]
[1730163041051,20.0,177.96,177.92,10.96383409]
[1730163041864,24.0185559,177.97,177.93,10.96383409]
[1730163042156,18.3996559,177.97,177.95,10.96383409]
[1730163042356,24.0185559,177.97,177.93,10.96383409]
[1730163042566,24.0185559,177.97,177.9,19.6737]
[1730163042741,24.0185559,177.97,177.93,10.96383409]
[1730163043958,24.0185559,177.97,177.94,10.96383409]
[1730163044146,10.96383409,178.0,177.91,5.6207]
[1730163044354,20.0,177.99,177.95,10.96383409]
[1730163044559,12.76180958,178.01,177.98,10.96383409]
[1730163044878,12.76180958,178.01,178.0,10.96383409]
[1730163045062,22.3179,178.06,178.0,10.96383409]
[1730163045246,22.3179,178.06,177.95,0.1]
[1730163045247,19.651,178.11,178.02,10.96383409]
[1730163045450,10.96383409,178.07,178.02,10.96383409]
[1730163045670,10.96383409,178.07,178.01,10.96383409]
[1730163045875,5.616,178.06,178.01,10.96383409]
[1730163046239,5.616,178.06,177.98,10.96383409]
[1730163046240,10.96383409,178.03,177.98,10.96383409]
[1730163046530,10.96383409,178.05,178.0,10.96383409]
[1730163046737,16.57983409,178.06,178.01,10.96383409]
[1730163047040,5.616,178.06,178.02,10.96383409]
[1730163047257,5.6151,178.09,178.04,10.96383409]
[1730163048470,16.57893409,178.09,178.04,10.96383409]
[1730163048657,5.6151,178.09,178.05,10.96383409]
[1730163050248,10.96383409,178.1,178.05,10.96383409]
[1730163050456,22.66300933,178.12,178.07,17.04890933]
[1730163050714,5.6141,178.12,178.08,17.04890933]
[1730163051102,22.66300933,178.12,178.07,17.04890933]
[1730163051246,22.66300933,178.12,178.06,17.04890933]
[1730163052453,17.04890933,178.09,178.04,17.04890933]
[1730163052779,17.04890933,178.09,178.03,17.04890933]
[1730163053179,17.04890933,178.07,178.02,17.04890933]
[1730163053777,17.04890933,178.08,178.03,17.04890933]
[1730163053997,5.6157,178.07,178.03,17.04890933]
[1730163054177,5.6157,178.07,178.02,17.04890933]
[1730163055474,17.04890933,178.07,178.01,36.71060933]
[1730163055863,17.04890933,178.03,177.98,17.04890933]
[1730163056570,17.04890933,178.04,177.99,17.04890933]
[1730163056774,43.776884,178.09,177.99,17.04890933]
[1730163056958,17.04890933,178.05,178.0,17.04890933]
[1730163057159,17.04890933,178.06,178.0,17.04890933]
[1730163057979,20.0,178.07,177.99,19.6637]
[1730163057980,17.04890933,178.07,178.01,17.04890933]
[1730163058182,5.616,178.06,178.02,17.04890933]
[1730163058561,22.66450933,178.08,178.03,17.04890933]
[1730163059886,17.04890933,178.07,178.02,17.04890933]
[1730163060186,17.04890933,178.06,178.01,22.66640933]
[1730163060486,17.04890933,178.06,178.0,31.09380933]
[1730163060794,17.04890933,178.06,178.0,36.71170933]
[1730163060990,17.04890933,178.06,178.01,17.04890933]
[1730163061665,54.86249333,178.11,178.0,19.6628]
[1730163061666,17.04890933,178.05,178.0,17.04890933]
[1730163062085,17.04890933,178.06,178.0,17.04890933]
[1730163062962,17.04890933,178.07,178.02,17.04890933]
[1730163063164,17.04890933,178.08,178.02,17.04890933]
[1730163063763,17.04890933,178.09,178.04,17.04890933]
[1730163063972,17.04890933,178.08,178.03,17.04890933]
[1730163064268,17.04890933,178.09,177.99,19.7639]
[1730163064464,22.66370933,178.1,178.05,17.04890933]
[1730163065666,17.04890933,178.11,178.06,17.04890933]
[1730163066487,17.04890933,178.1,178.05,17.04890933]
[1730163066681,17.04890933,178.11,178.06,17.04890933]
[1730163066873,17.04890933,178.1,178.04,36.70720933]
[1730163067285,5.6151,178.09,178.04,36.70720933]
[1730163067488,22.66400933,178.09,178.03,17.04890933]
[1730163068071,22.66400933,178.09,178.04,17.04890933]
[1730163068411,5.6151,178.09,178.04,17.04890933]
[1730163068874,17.04890933,178.08,178.03,17.04890933]
[1730163069068,22.66400933,178.09,178.03,17.04890933]
[1730163069270,22.66400933,178.09,178.04,17.04890933]
[1730163070083,17.04890933,178.08,178.03,17.04890933]
[1730163070267,5.6157,178.07,178.03,17.04890933]
[1730163070468,17.04890933,178.08,178.03,17.04890933]
[1730163070667,22.66430933,178.09,178.04,17.04890933]
[1730163072573,22.66430933,178.09,178.01,14.0434]
[1730163072574,17.04890933,178.06,178.01,36.70990933]
[1730163072760,17.04890933,178.07,178.02,17.04890933]
[1730163073370,17.04890933,178.08,178.03,17.04890933]
[1730163073885,22.66460933,178.07,178.01,36.70990933]
[1730163074269,22.66460933,178.07,178.02,17.04890933]
[1730163074483,5.6157,178.07,178.02,17.04890933]
[1730163075069,5.6157,178.07,178.03,17.04890933]
[1730163075283,5.6154,178.08,178.03,17.04890933]
[1730163075469,17.04890933,178.07,178.02,22.66610933]
[1730163076064,17.04890933,178.07,178.02,17.04890933]
[1730163076371,17.04890933,178.05,178.01,14.0434]
[1730163076570,10.91945579,178.05,178.01,14.0434]
[1730163076784,10.91945579,178.06,178.01,24.96285579]
[1730163076998,10.91945579,178.06,178.01,14.0434]
[1730163077183,10.91945579,178.03,177.97,40.57935579]
[1730163077497,10.91945579,178.02,177.97,24.96655579]
[1730163077793,10.91945579,178.04,177.99,10.91945579]
[1730163078179,5.87041653,178.07,177.97,19.666]
[1730163078180,10.91945579,178.03,177.98,10.91945579]
[1730163078784,10.91945579,178.01,177.93,14.0497]
[1730163078976,10.91945579,178.0,177.95,10.91945579]
[1730163079178,10.91945579,178.02,177.97,10.91945579]
[1730163079391,10.91945579,178.02,177.96,10.91945579]
[1730163079581,10.91945579,178.01,177.96,10.91945579]
[1730163080007,16.53715579,178.01,177.96,10.91945579]
[1730163080312,5.6177,178.01,177.96,16.53855579]
[1730163080468,5.6177,178.01,177.96,22.68771387]
[1730163081879,17.06861387,178.01,177.96,22.68771387]
[1730163082092,17.06861387,178.0,177.95,17.06861387]
[1730163082401,17.06861387,177.97,177.93,19.6698]
[1730163082584,17.06861387,177.95,177.9,17.06861387]
[1730163083096,5.6167,178.04,177.94,39.34901387]
[1730163083398,5.6167,178.04,178.0,17.06861387]
[1730163083699,5.6167,178.04,177.99,17.06861387]
[1730163084188,17.06861387,178.03,177.98,17.06861387]
[1730163084627,22.68531387,178.04,177.98,17.06861387]
[1730163085271,17.06861387,178.03,177.97,17.06861387]
[1730163085799,17.06861387,178.0,177.95,17.06861387]
[1730163086006,17.06861387,178.01,177.95,17.06861387]
[1730163086306,17.06861387,177.99,177.94,17.06861387]
[1730163086493,17.06861387,178.0,177.95,17.06861387]
[1730163086804,17.06861387,178.02,177.97,17.06861387]
[1730163087103,5.87041653,178.07,177.92,19.671]
[1730163087104,22.68531387,178.04,177.98,17.06861387]
[1730163087482,22.68501387,178.05,177.99,17.06861387]
[1730163087699,17.06861387,178.04,177.99,17.06861387]
[1730163087888,17.06861387,178.04,177.98,17.06861387]
[1730163088203,17.06861387,178.09,178.03,17.06861387]
[1730163088446,17.06861387,178.08,178.03,17.06861387]
[1730163088778,5.86443435,178.13,178.03,17.06861387]
[1730163088779,17.06861387,178.09,178.03,17.06861387]
[1730163089098,17.06861387,178.11,178.06,17.06861387]
[1730163089304,17.06861387,178.1,178.05,17.06861387]
[1730163089489,17.06861387,178.1,178.04,17.06861387]
[1730163089821,17.06861387,178.11,178.05,17.06861387]
[1730163090096,17.06861387,178.1,178.05,22.68481387]
[1730163090304,17.06861387,178.1,178.05,5.6162]
[1730163090599,17.06861387,178.1,178.05,22.68481387]
[1730163092226,0.1,178.17,178.05,22.68481387]
[1730163092227,15.5366,178.19,178.09,17.06861387]
[1730163092402,32.60521387,178.19,178.13,17.06861387]
[1730163092609,15.5366,178.19,178.14,17.06861387]
[1730163092905,32.60521387,178.19,178.13,17.06861387]
[1730163093206,5.6123,178.18,178.13,17.06861387]
[1730163093416,22.68091387,178.18,178.12,17.06861387]
[1730163093792,17.06861387,178.16,178.1,31.10551387]
[1730163094016,17.06861387,178.15,178.1,14.0369]
[1730163094181,17.06861387,178.16,178.11,17.06861387]
[1730163094608,23.41851387,178.15,178.08,5.6153]
[1730163094781,23.41851387,178.15,178.09,17.06861387]
[1730163094981,23.41851387,178.15,178.12,17.06861387]
[1730163094982,6.3499,178.15,178.12,17.06861387]
[1730163095820,11.9631,178.15,178.1,17.06861387]
[1730163096007,11.9631,178.15,178.11,17.06861387]
[1730163096183,31.09851387,178.2,178.11,17.06861387]
[1730163096184,6.2039953,178.21,178.14,17.06861387]
[1730163096492,6.2039953,178.21,178.16,17.06861387]
[1730163097416,6.2039953,178.21,178.11,17.06861387]
[1730163097417,0.5925953,178.21,178.19,17.06861387]
[1730163097707,0.5925953,178.21,178.17,17.06861387]
[1730163098289,0.5925953,178.21,178.16,17.06861387]
[1730163098691,0.5925953,178.21,178.11,17.06861387]
[1730163098692,0.5925953,178.21,178.18,17.06861387]
[1730163098904,0.5925953,178.21,178.19,17.06861387]
[1730163099204,0.5925953,178.21,178.2,17.06861387]
[1730163099591,0.5925953,178.21,178.19,17.06861387]
[1730163100053,0.5925953,178.21,178.15,14.033]
[1730163100054,0.5925953,178.21,178.2,17.06861387]
[1730163100306,0.5925953,178.21,178.15,14.033]
[1730163100307,0.5925953,178.21,178.18,17.06861387]
[1730163100490,0.5925953,178.21,178.19,17.06861387]
[1730163101396,6.2039953,178.21,178.17,17.06861387]
[1730163103206,0.5925953,178.21,178.2,17.06861387]
[1730163106289,0.5925953,178.21,178.2,22.68021387]
[1730163108889,0.5925953,178.21,178.19,17.06861387]
[1730163109611,0.5925953,178.21,178.2,17.06861387]
[1730163109800,0.5925953,178.21,178.19,17.06861387]
[1730163111110,0.5925953,178.21,178.18,14.0305]
[1730163111111,0.5925953,178.21,178.2,17.06861387]
[1730163113116,0.5925953,178.21,178.2,22.68021387]
[1730163114808,5.86330642,178.28,178.21,15.6065]
[1730163115011,0.79,178.29,178.27,17.06861387]
[1730163115424,0.79,178.29,178.22,31.09621387]
[1730163115425,23.46741387,178.29,178.22,31.09621387]
[1730163115603,6.3988,178.29,178.18,19.6428]
[1730163115882,6.3988,178.29,178.21,17.06861387]
[1730163115883,17.06861387,178.27,178.21,17.06861387]
[1730163116614,22.67831387,178.26,178.2,17.06861387]
[1730163116810,20.0,178.25,178.2,17.06861387]
[1730163117916,5.6104,178.24,178.2,17.06861387]
[1730163118099,22.67901387,178.24,178.18,17.06861387]
[1730163118297,5.6104,178.24,178.19,17.06861387]
[1730163118503,5.6104,178.24,178.2,17.06861387]
[1730163120317,43.776884,178.23,178.18,17.06861387]
[1730163120517,5.6104,178.24,178.2,17.06861387]
[1730163120726,5.6104,178.24,178.19,17.06861387]
[1730163121017,22.67901387,178.24,178.18,17.06861387]
[1730163121315,17.06861387,178.26,178.2,17.06861387]
[1730163121499,20.0,178.26,178.23,17.06861387]
[1730163121697,20.0,178.26,178.21,17.06861387]
[1730163122104,37.06861387,178.26,178.2,17.06861387]
[1730163123125,5.61,178.25,178.2,17.06861387]
[1730163123614,5.61,178.25,178.19,17.06861387]
[1730163123798,22.67861387,178.25,178.19,17.06861387]
[1730163124416,5.61,178.25,178.2,17.06861387]
[1730163124615,15.4451,178.27,178.22,17.06861387]
[1730163124934,5.6094,178.27,178.22,17.06861387]
[1730163125126,22.67801387,178.27,178.21,17.06861387]
[1730163125437,17.06861387,178.24,178.18,17.06861387]
[1730163126403,20.0,178.23,178.18,17.06861387]
[1730163126610,5.611,178.22,178.17,17.06861387]
[1730163127828,17.06861387,178.21,178.15,17.06861387]
[1730163127999,17.06861387,178.2,178.14,31.10251387]
[1730163128509,17.06861387,178.21,178.15,17.06861387]
[1730163129303,17.06861387,178.2,178.14,31.10251387]
[1730163130105,5.6119,178.19,178.14,31.10251387]
[1730163130399,5.6119,178.19,178.16,17.06861387]
[1730163130998,5.6119,178.19,178.15,17.06861387]
[1730163131223,17.06861387,178.22,178.16,17.06861387]
[1730163131428,22.67961387,178.22,178.16,17.06861387]
[1730163131613,22.67961387,178.22,178.14,19.6474]
[1730163131614,15.5081,178.27,178.21,17.06861387]
[1730163131925,15.5081,178.27,178.22,17.06861387]
[1730163132121,5.6097,178.26,178.22,17.06861387]
[1730163132438,5.6097,178.26,178.21,17.06861387]
[1730163133021,20.0,178.25,178.21,17.06861387]
[1730163133210,25.6097,178.26,178.24,17.06861387]
[1730163133699,25.6097,178.26,178.23,17.06861387]
[1730163134223,25.6097,178.26,178.22,17.06861387]
[1730163135016,20.0,178.26,178.24,17.06861387]
[1730163135198,21.1176,178.27,178.24,17.06861387]
[1730163135600,6.1319,178.28,178.26,17.06861387]
[1730163135814,0.79,178.29,178.27,17.06861387]
[1730163136117,0.79,178.29,178.28,17.06861387]
[1730163140004,0.79,178.29,178.28,22.67771387]
[1730163150129,24.09430917,178.38,178.28,39.74632774]
[1730163150130,7.0256953,178.38,178.28,39.74632774]
[1730163150332,5.6063,178.37,178.36,17.06861387]
[1730163150541,5.6063,178.37,178.36,10.87603744]
[1730163150909,7.0256953,178.38,178.36,10.87603744]
[1730163150910,0.5925953,178.38,178.36,10.87603744]
[1730163151242,0.5925953,178.38,178.37,10.87603744]
[1730163152514,0.5925953,178.38,178.37,16.98994103]
[1730163154847,0.5925953,178.38,178.37,33.97988206]
[1730163155012,0.5925953,178.38,178.37,39.58618206]
[1730163155517,21.8699,178.51,178.41,0.1]
[1730163155720,21.8699,178.51,178.48,16.98994103]
[1730163156145,21.8699,178.51,178.47,16.98994103]
[1730163156448,21.8699,178.51,178.48,16.98994103]
[1730163156819,27.4718,178.51,178.47,16.98994103]
[1730163157136,27.4718,178.51,178.48,16.98994103]
[1730163157834,16.98994103,178.5,178.45,16.98994103]
[1730163158134,16.98994103,178.48,178.42,16.98994103]
[1730163158334,36.98994103,178.47,178.42,16.98994103]
[1730163158638,16.98994103,178.46,178.4,16.98994103]
[1730163158836,23.776884,178.49,178.36,5.6065]
[1730163158837,20.0,178.48,178.42,16.98994103]
[1730163159019,20.0,178.48,178.45,16.98994103]
[1730163159218,20.0,178.48,178.44,16.98994103]
[1730163159431,20.0,178.48,178.43,16.98994103]
[1730163160043,5.6031,178.47,178.43,16.98994103]
[1730163160424,23.776884,178.46,178.41,16.98994103]
[1730163160737,23.776884,178.46,178.42,16.98994103]
[1730163160927,23.776884,178.46,178.36,19.6229]
[1730163160928,23.776884,178.46,178.43,16.98994103]
[1730163161520,5.6031,178.47,178.43,16.98994103]
[1730163161521,29.379984,178.47,178.43,16.98994103]
[1730163161725,5.6031,178.47,178.44,16.98994103]
[1730163162436,5.6031,178.47,178.39,5.6056]
[1730163162437,5.6031,178.47,178.46,16.98994103]
[1730163162734,5.6022,178.5,178.46,16.98994103]
[1730163162939,5.6022,178.5,178.49,16.98994103]
[1730163163127,5.6022,178.5,178.48,16.98994103]
[1730163164018,5.6022,178.5,178.47,16.98994103]
[1730163165016,22.59214103,178.5,178.45,16.98994103]
[1730163165215,5.6022,178.5,178.46,16.98994103]
[1730163166230,22.59214103,178.5,178.44,16.98994103]
[1730163166439,16.98994103,178.46,178.4,16.98994103]
[1730163166722,16.98994103,178.44,178.38,16.98994103]